Workbook

Sheet Disclaimer

Sheet Title sheet

Sheet SMART

Sheet User guide
B16: Style | D16: Design | F16: Comment
B18: Header 1 | D18: Header1
B20: Header 2 | D20: Header2
B22: Input | D22: 100 | F22: A user driven input
B24: Demo | D24: 100 | F24: Values needed to demonstrate the principle in a complete model would be dynamically coded or set-up differently
B26: Empty_cell | F26: A cell that is left intentionally blank to avoid the risk of error
B28: Off-Sheet | D28: 100 | F28: A link to another worksheet to minimise the number of inter-worksheet references (slow and risky)
B30: Total | F30: The sum of elements above, including sub-totals
B32: Unit / Info | D32: USD millions | F32: Explanatory text showing helpful information and the units/dimensions of the calculations
B34: Line Summary | D34: 100 | F34: The SUM() of everything to the right
B36: Table Header | D36: Qtr | F36: Header of a table or of an off-sheet reference
B38: Flag | D38: 1 | F38: Binary flag - set up as conditional formatting rather than a 'Style'
B40: Balance | F40: The closing balance of a control account

Sheet Inputs
A1: Tutorial: Cash flow available for debt service (CFADS)
A2: Inputs
A4: Inputs specific to the tutorial
A5: Debt
A6: Pro rata drawdown of debt | B6: AUD M | C6: 0.65
A7: Debt term | B7: Years | C7: 3.75
A8: Debt repaid on | B8: Date | C8: =EOMONTH(C13,C7*Mths_year-1) -> 2018-09-30
A9: Interest rate | B9: % | C9: 0.055
A11: Inputs to support demonstration
A12: Timing
A13: Start of operations | B13: Date | C13: 2015-01-01
A15: Constants
A16: Days in year | B16: Days | C16: 365
A17: Months per quarter | B17: Months | C17: 3
A18: Months per year | B18: Months | C18: 12

Sheet Calculations
A1: Tutorial: Cash flow available for debt service
A2: Calculations
A3: Period start | H3: =G4+1 -> 2014-01-01 | I3: =H4+1 -> 2014-04-01 | J3: 2014-07-01 | K3: 2014-10-01 | L3: 2015-01-01 | M3: 2015-04-01 | N3: 2015-07-01 | O3: 2015-10-01 | P3: 2016-01-01 | Q3: 2016-04-01 | R3: 2016-07-01 | S3: 2016-10-01 | T3: 2017-01-01 | U3: 2017-04-01 | V3: 2017-07-01 | W3: 2017-10-01 | X3: 2018-01-01 | Y3: 2018-04-01 | Z3: 2018-07-01 | AA3: 2018-10-01
A4: Period end | G4: 2013-12-31 | H4: =EOMONTH(H3,Mths_in_Qtr-1) -> 2014-03-31 | I4: 2014-06-30 | J4: 2014-09-30 | K4: 2014-12-31 | L4: 2015-03-31 | M4: 2015-06-30 | N4: 2015-09-30 | O4: 2015-12-31 | P4: 2016-03-31 | Q4: 2016-06-30 | R4: 2016-09-30 | S4: 2016-12-31 | T4: 2017-03-31 | U4: 2017-06-30 | V4: 2017-09-30 | W4: 2017-12-31 | X4: 2018-03-31 | Y4: 2018-06-30 | Z4: 2018-09-30 | AA4: 2018-12-31
A5: Construction | H5: 1 | I5: 1 | J5: 1 | K5: 1
A6: Operations | L6: 1 | M6: 1 | N6: 1 | O6: 1 | P6: 1 | Q6: 1 | R6: 1 | S6: 1 | T6: 1 | U6: 1 | V6: 1 | W6: 1 | X6: 1 | Y6: 1 | Z6: 1 | AA6: 1
A8: Counters
A9: Days in period | B9: Days | H9: =H4-H3+1 -> 90 | I9: =I4-I3+1 -> 91 | J9: 92 | K9: 92 | L9: 90 | M9: 91 | N9: 92 | O9: 92 | P9: 91 | Q9: 91 | R9: 92 | S9: 92 | T9: 90 | U9: 91 | V9: 92 | W9: 92 | X9: 90 | Y9: 91 | Z9: 92 | AA9: 92
A10: Repayment period | B10: 1,0 | C10: =Inputs!C13 -> 2015-01-01 | D10: =Inputs!C8 -> 2018-09-30 | H10: =(H3>=$C$10)*(H4<=$D$10) -> 0 | I10: 0 | J10: 0 | K10: 0 | L10: 1 | M10: 1 | N10: 1 | O10: 1 | P10: 1 | Q10: 1 | R10: 1 | S10: 1 | T10: 1 | U10: 1 | V10: 1 | W10: 1 | X10: 1 | Y10: 1 | Z10: 1 | AA10: 0
A12: Cash flow waterfall
A13: Operating cash flows
A14: Revenue | B14: USD M | G14: =SUM(H14:AA14) -> 1515.453052 | H14: 0 | I14: 0 | J14: 0 | K14: 0 | L14: 73.265 | M14: 88.685 | N14: 73.265 | O14: 88.685 | P14: 88.732 | Q14: 88.532 | R14: 90.73620599 | S14: 95.80795914 | T14: 98.01947311 | U14: 102.431424 | V14: 102.9148207 | W14: 104.3791692 | X14: 105 | Y14: 105 | Z14: 105 | AA14: 105
A15: Operating expenditure | B15: USD M | G15: =SUM(H15:AA15) -> -848.987909 | H15: 0 | I15: 0 | J15: 0 | K15: 0 | L15: -41.17264475 | M15: -49.44335525 | N15: -41.62177188 | O15: -49.38854873 | P15: -49.17982111 | Q15: -48.97420821 | R15: -50.5883424 | S15: -53.42880385 | T15: -55.7949353 | U15: -58.38069137 | V15: -57.41406414 | W15: -58.7510564 | X15: -58.61925959 | Y15: -57.83668203 | Z15: -59.47542031 | AA15: -58.91830367
A16: Total | B16: USD M | G16: =SUM(H16:AA16) -> 666.4651431 | H16: =SUM(H14:H15) -> 0 | I16: =SUM(I14:I15) -> 0 | J16: 0 | K16: 0 | L16: 32.09235525 | M16: 39.24164475 | N16: 31.64322812 | O16: 39.29645127 | P16: 39.55217889 | Q16: 39.55779179 | R16: 40.14786358 | S16: 42.37915529 | T16: 42.22453781 | U16: 44.05073262 | V16: 45.50075654 | W16: 45.62811282 | X16: 46.38074041 | Y16: 47.16331797 | Z16: 45.52457969 | AA16: 46.08169633
A18: Net working capital adjustments | B18: USD M | G18: =SUM(H18:AA18) -> 0
A20: Operating cash flows | B20: USD M | G20: =SUM(H20:AA20) -> 666.4651431 | H20: =H16+H18 -> 0 | I20: =I16+I18 -> 0 | J20: 0 | K20: 0 | L20: 32.09235525 | M20: 39.24164475 | N20: 31.64322812 | O20: 39.29645127 | P20: 39.55217889 | Q20: 39.55779179 | R20: 40.14786358 | S20: 42.37915529 | T20: 42.22453781 | U20: 44.05073262 | V20: 45.50075654 | W20: 45.62811282 | X20: 46.38074041 | Y20: 47.16331797 | Z20: 45.52457969 | AA20: 46.08169633
A22: Development
A23: Development capital expenditure | B23: USD M | G23: =SUM(H23:AA23) -> -358.0257836 | H23: -71.60515671 | I23: -64.44464104 | J23: -114.5682507 | K23: -107.4077351 | L23: 0 | M23: 0 | N23: 0 | O23: 0 | P23: 0 | Q23: 0 | R23: 0 | S23: 0 | T23: 0 | U23: 0 | V23: 0 | W23: 0 | X23: 0 | Y23: 0 | Z23: 0 | AA23: 0
A24: Interest during construction | B24: USD M | G24: =SUM(H24:AA24) -> -4.145066431 | H24: =-H57*H5 -> 0 | I24: =-I57*I5 -> -0.6382177426 | J24: -1.23169009 | K24: -2.275158598 | L24: 0 | M24: 0 | N24: 0 | O24: 0 | P24: 0 | Q24: 0 | R24: 0 | S24: 0 | T24: 0 | U24: 0 | V24: 0 | W24: 0 | X24: 0 | Y24: 0 | Z24: 0 | AA24: 0
A25: Total | B25: USD M | G25: =SUM(H25:AA25) -> -362.17085 | H25: =SUM(H23:H24) -> -71.60515671 | I25: =SUM(I23:I24) -> -65.08285878 | J25: -115.7999408 | K25: -109.6828937 | L25: 0 | M25: 0 | N25: 0 | O25: 0 | P25: 0 | Q25: 0 | R25: 0 | S25: 0 | T25: 0 | U25: 0 | V25: 0 | W25: 0 | X25: 0 | Y25: 0 | Z25: 0 | AA25: 0
A27: Cash flow before funding | B27: USD M | G27: =SUM(H27:AA27) -> 304.2942931 | H27: =H20+H25 -> -71.60515671 | I27: =I20+I25 -> -65.08285878 | J27: -115.7999408 | K27: -109.6828937 | L27: 32.09235525 | M27: 39.24164475 | N27: 31.64322812 | O27: 39.29645127 | P27: 39.55217889 | Q27: 39.55779179 | R27: 40.14786358 | S27: 42.37915529 | T27: 42.22453781 | U27: 44.05073262 | V27: 45.50075654 | W27: 45.62811282 | X27: 46.38074041 | Y27: 47.16331797 | Z27: 45.52457969 | AA27: 46.08169633
A29: Funding
A30: Equity funding | B30: USD M | C30: =1-C31 -> 0.35 | G30: =SUM(H30:AA30) -> 126.7597975 | H30: =-H$25*$C30 -> 25.06180485 | I30: =-I$25*$C30 -> 22.77900057 | J30: 40.52997929 | K30: 38.38901278 | L30: 0 | M30: 0 | N30: 0 | O30: 0 | P30: 0 | Q30: 0 | R30: 0 | S30: 0 | T30: 0 | U30: 0 | V30: 0 | W30: 0 | X30: 0 | Y30: =-Y$25*$C30 -> 0 | Z30: 0 | AA30: 0
A31: Debt funding | B31: USD M | C31: =Inputs!C6 -> 0.65 | G31: =SUM(H31:AA31) -> 235.4110525 | H31: =-H$25*$C31 -> 46.54335186 | I31: 42.30385821 | J31: 75.26996154 | K31: 71.29388088 | L31: 0 | M31: 0 | N31: 0 | O31: 0 | P31: 0 | Q31: 0 | R31: 0 | S31: 0 | T31: 0 | U31: 0 | V31: 0 | W31: 0 | X31: 0 | Y31: 0 | Z31: 0 | AA31: 0
A32: Total | B32: USD M | G32: =SUM(H32:AA32) -> 362.17085 | H32: =SUM(H30:H31) -> 71.60515671 | I32: =SUM(I30:I31) -> 65.08285878 | J32: 115.7999408 | K32: 109.6828937 | L32: 0 | M32: 0 | N32: 0 | O32: 0 | P32: 0 | Q32: 0 | R32: 0 | S32: 0 | T32: 0 | U32: 0 | V32: 0 | W32: 0 | X32: 0 | Y32: 0 | Z32: 0 | AA32: 0
A34: Cash flow after funding | G34: =SUM(H34:AA34) -> 666.4651431 | H34: =H27+H32 -> 0 | I34: =I27+I32 -> 0 | J34: 0 | K34: 0 | L34: 32.09235525 | M34: 39.24164475 | N34: 31.64322812 | O34: 39.29645127 | P34: 39.55217889 | Q34: 39.55779179 | R34: 40.14786358 | S34: 42.37915529 | T34: 42.22453781 | U34: 44.05073262 | V34: 45.50075654 | W34: 45.62811282 | X34: 46.38074041 | Y34: 47.16331797 | Z34: 45.52457969 | AA34: 46.08169633
A36: Maintenance capital expenditure | B36: USD M | G36: =SUM(H36:AA36) -> -75.77265261 | H36: 0 | I36: 0 | J36: 0 | K36: 0 | L36: -3.66325 | M36: -4.43425 | N36: -3.66325 | O36: -4.43425 | P36: -4.4366 | Q36: -4.4266 | R36: -4.536810299 | S36: -4.790397957 | T36: -4.900973656 | U36: -5.121571199 | V36: -5.145741034 | W36: -5.218958461 | X36: -5.25 | Y36: -5.25 | Z36: -5.25 | AA36: -5.25
A37: Income tax | B37: USD M | G37: =SUM(H37:AA37) -> -119.9637258 | H37: =-H16*18% -> 0 | I37: =-I16*18% -> 0 | J37: 0 | K37: 0 | L37: -5.776623944 | M37: -7.063496055 | N37: -5.695781061 | O37: -7.073361229 | P37: -7.119392201 | Q37: -7.120402523 | R37: -7.226615445 | S37: -7.628247953 | T37: -7.600416806 | U37: -7.929131872 | V37: -8.190136176 | W37: -8.213060307 | X37: -8.348533273 | Y37: -8.489397235 | Z37: -8.194424343 | AA37: -8.29470534
A39: CFADS | B39: USD M | G39: =SUM(H39:AA39) -> 470.7287648 | H39: =H34+SUM(H36:H37) -> 0 | I39: 0 | J39: 0 | K39: 0 | L39: =L34+SUM(L36:L37) -> 22.6524813 | M39: =M34+SUM(M36:M37) -> 27.74389869 | N39: 22.28419706 | O39: 27.78884004 | P39: 27.99618669 | Q39: 28.01078927 | R39: 28.38443784 | S39: 29.96050938 | T39: 29.72314735 | U39: 31.00002955 | V39: 32.16487933 | W39: 32.19609405 | X39: 32.78220713 | Y39: 33.42392074 | Z39: 32.08015534 | AA39: 32.53699099
A41: Debt service
A42: Interest | B42: USD M | G42: =SUM(H42:AA42) -> -26.712778 | H42: =-H57*H6 -> 0 | I42: =-I57*I6 -> 0 | J42: 0 | K42: 0 | L42: -3.192560849 | M42: -3.032527618 | N42: -2.865717058 | O42: -2.663024325 | P42: -2.430809467 | Q42: -2.224565193 | R42: -2.037641103 | S42: -1.823503127 | T42: -1.571474889 | U42: -1.371014166 | V42: -1.162860392 | W42: -0.936647842 | X42: -0.6919232323 | Y42: -0.4695417379 | Z42: -0.2389670033 | AA42: 0
A43: Principal repayment | B43: USD M | G43: =SUM(H43:AA43) -> -235.4110525 | H43: =-H64 -> 0 | I43: =-I64 -> 0 | J43: 0 | K43: 0 | L43: -14.25768974 | M43: -14.43661842 | N43: -14.62111617 | O43: -14.82380891 | P43: -15.04079119 | Q43: -15.24703546 | R43: -15.4467117 | S43: -15.66084968 | T43: -15.89238114 | U43: -16.10182811 | V43: -16.31770372 | W43: -16.54391627 | X43: -16.77829742 | Y43: -17.00456618 | Z43: -17.23773838 | AA43: 0
A44: Total | B44: USD M | G44: =SUM(H44:AA44) -> -262.1238305 | H44: =SUM(H42:H43) -> 0 | I44: =SUM(I42:I43) -> 0 | J44: =SUM(J42:J43) -> 0 | K44: =SUM(K42:K43) -> 0 | L44: =SUM(L42:L43) -> -17.45025059 | M44: =SUM(M42:M43) -> -17.46914604 | N44: =SUM(N42:N43) -> -17.48683323 | O44: =SUM(O42:O43) -> -17.48683323 | P44: =SUM(P42:P43) -> -17.47160066 | Q44: =SUM(Q42:Q43) -> -17.47160066 | R44: =SUM(R42:R43) -> -17.48435281 | S44: =SUM(S42:S43) -> -17.48435281 | T44: =SUM(T42:T43) -> -17.46385603 | U44: =SUM(U42:U43) -> -17.47284227 | V44: =SUM(V42:V43) -> -17.48056412 | W44: =SUM(W42:W43) -> -17.48056412 | X44: =SUM(X42:X43) -> -17.47022065 | Y44: =SUM(Y42:Y43) -> -17.47410792 | Z44: =SUM(Z42:Z43) -> -17.47670538 | AA44: =SUM(AA42:AA43) -> 0
A46: Cash flow available to equity | B46: USD M | G46: =SUM(H46:AA46) -> 208.6049342 | H46: =H39+H44 -> 0 | I46: =I39+I44 -> 0 | J46: 0 | K46: 0 | L46: 5.202230709 | M46: 10.27475265 | N46: 4.797363825 | O46: 10.30200681 | P46: 10.52458604 | Q46: 10.53918861 | R46: 10.90008503 | S46: 12.47615658 | T46: 12.25929132 | U46: 13.52718728 | V46: 14.68431521 | W46: 14.71552993 | X46: 15.31198648 | Y46: 15.94981282 | Z46: 14.60344996 | AA46: 32.53699099
A48: Debt calculations
A49: Debt Account
A50: Balance B/f | B50: USD M | H50: =G53 -> 0 | I50: =H53 -> 46.54335186 | J50: 88.84721007 | K50: 164.1171716 | L50: 235.4110525 | M50: 221.1533628 | N50: 206.7167443 | O50: 192.0956282 | P50: 177.2718192 | Q50: 162.2310281 | R50: 146.9839926 | S50: 131.5372809 | T50: 115.8764312 | U50: 99.98405008 | V50: 83.88222197 | W50: 67.56451825 | X50: 51.02060198 | Y50: 34.24230456 | Z50: 17.23773838 | AA50: 0
A51: Drawdowns | B51: USD M | G51: =SUM(H51:AA51) -> 235.4110525 | H51: =H31 -> 46.54335186 | I51: =I31 -> 42.30385821 | J51: 75.26996154 | K51: 71.29388088 | L51: 0 | M51: 0 | N51: 0 | O51: 0 | P51: 0 | Q51: 0 | R51: 0 | S51: 0 | T51: 0 | U51: 0 | V51: 0 | W51: 0 | X51: 0 | Y51: 0 | Z51: 0 | AA51: 0
A52: Repayments | B52: USD M | G52: =SUM(H52:AA52) -> -235.4110525 | H52: =-H64 -> 0 | I52: =-I64 -> 0 | J52: 0 | K52: 0 | L52: -14.25768974 | M52: -14.43661842 | N52: -14.62111617 | O52: -14.82380891 | P52: -15.04079119 | Q52: -15.24703546 | R52: -15.4467117 | S52: -15.66084968 | T52: -15.89238114 | U52: -16.10182811 | V52: -16.31770372 | W52: -16.54391627 | X52: -16.77829742 | Y52: -17.00456618 | Z52: -17.23773838 | AA52: 0
A53: Balance C/f | B53: USD M | H53: =ROUND(SUM(H50:H52),8) -> 46.54335186 | I53: =ROUND(SUM(I50:I52),8) -> 88.84721007 | J53: 164.1171716 | K53: 235.4110525 | L53: 221.1533628 | M53: 206.7167443 | N53: 192.0956282 | O53: 177.2718192 | P53: 162.2310281 | Q53: 146.9839926 | R53: 131.5372809 | S53: 115.8764312 | T53: 99.98405008 | U53: 83.88222197 | V53: 67.56451825 | W53: 51.02060198 | X53: 34.24230456 | Y53: 17.23773838 | Z53: 0 | AA53: 0
A55: Interest
A56: Rate | B56: % p.q. | C56: =Inputs!C9 -> 0.055 | H56: =$C$56 / Days_in_Yr *H9 -> 0.01356164384 | I56: 0.01371232877 | J56: 0.0138630137 | K56: 0.0138630137 | L56: 0.01356164384 | M56: 0.01371232877 | N56: 0.0138630137 | O56: 0.0138630137 | P56: 0.01371232877 | Q56: 0.01371232877 | R56: 0.0138630137 | S56: 0.0138630137 | T56: 0.01356164384 | U56: 0.01371232877 | V56: 0.0138630137 | W56: 0.0138630137 | X56: 0.01356164384 | Y56: 0.01371232877 | Z56: 0.0138630137 | AA56: 0.0138630137
A57: Amount payable | B57: USD M | G57: =SUM(H57:AA57) -> 30.85784443 | H57: =H50*H56 -> 0 | I57: =I50*I56 -> 0.6382177426 | J57: 1.23169009 | K57: 2.275158598 | L57: 3.192560849 | M57: 3.032527618 | N57: 2.865717058 | O57: 2.663024325 | P57: 2.430809467 | Q57: 2.224565193 | R57: 2.037641103 | S57: 1.823503127 | T57: 1.571474889 | U57: 1.371014166 | V57: 1.162860392 | W57: 0.936647842 | X57: 0.6919232323 | Y57: 0.4695417379 | Z57: 0.2389670033 | AA57: 0
A59: Payment remaining | B59: Num# | H59: =SUM(H10:$AA$10)*H10 -> 0 | I59: =SUM(I10:$AA$10)*I10 -> 0 | J59: =SUM(J10:$AA$10)*J10 -> 0 | K59: =SUM(K10:$AA$10)*K10 -> 0 | L59: =SUM(L10:$AA$10)*L10 -> 15 | M59: =SUM(M10:$AA$10)*M10 -> 14 | N59: =SUM(N10:$AA$10)*N10 -> 13 | O59: =SUM(O10:$AA$10)*O10 -> 12 | P59: =SUM(P10:$AA$10)*P10 -> 11 | Q59: =SUM(Q10:$AA$10)*Q10 -> 10 | R59: =SUM(R10:$AA$10)*R10 -> 9 | S59: =SUM(S10:$AA$10)*S10 -> 8 | T59: =SUM(T10:$AA$10)*T10 -> 7 | U59: =SUM(U10:$AA$10)*U10 -> 6 | V59: =SUM(V10:$AA$10)*V10 -> 5 | W59: =SUM(W10:$AA$10)*W10 -> 4 | X59: =SUM(X10:$AA$10)*X10 -> 3 | Y59: =SUM(Y10:$AA$10)*Y10 -> 2 | Z59: =SUM(Z10:$AA$10)*Z10 -> 1 | AA59: =SUM(AA10:$AA$10)*AA10 -> 0
A61: Calculation of principal repayment
A62: Annuity | B62: USD M | G62: =SUM(H62:AA62) -> 262.1238305 | H62: =IF(H10=0,0,H57/(1-(1+H56)^-H59)) -> 0 | I62: 0 | J62: 0 | K62: 0 | L62: 17.45025059 | M62: 17.46914604 | N62: 17.48683323 | O62: 17.48683323 | P62: 17.47160066 | Q62: 17.47160066 | R62: 17.48435281 | S62: 17.48435281 | T62: 17.46385603 | U62: 17.47284227 | V62: 17.48056412 | W62: 17.48056412 | X62: 17.47022065 | Y62: 17.47410792 | Z62: 17.47670538 | AA62: 0
A63: Less interest | B63: USD M | G63: =SUM(H63:AA63) -> -26.712778 | H63: =-H57*H10 -> 0 | I63: 0 | J63: 0 | K63: 0 | L63: -3.192560849 | M63: -3.032527618 | N63: -2.865717058 | O63: -2.663024325 | P63: -2.430809467 | Q63: -2.224565193 | R63: -2.037641103 | S63: -1.823503127 | T63: -1.571474889 | U63: -1.371014166 | V63: -1.162860392 | W63: -0.936647842 | X63: -0.6919232323 | Y63: -0.4695417379 | Z63: -0.2389670033 | AA63: 0
A64: Principal repayment | B64: USD M | G64: =SUM(H64:AA64) -> 235.4110525 | H64: =SUM(H62:H63) -> 0 | I64: =SUM(I62:I63) -> 0 | J64: 0 | K64: 0 | L64: 14.25768974 | M64: 14.43661842 | N64: 14.62111617 | O64: 14.82380891 | P64: 15.04079119 | Q64: 15.24703546 | R64: 15.4467117 | S64: 15.66084968 | T64: 15.89238114 | U64: 16.10182811 | V64: 16.31770372 | W64: 16.54391627 | X64: 16.77829742 | Y64: 17.00456618 | Z64: 17.23773838 | AA64: 0
A66: DSCR
A67: Total debt service
A68: Interest | B68: USD M | G68: =SUM(H68:AA68) -> 26.712778 | H68: =-H63 -> 0 | I68: =-I63 -> 0 | J68: 0 | K68: 0 | L68: 3.192560849 | M68: 3.032527618 | N68: 2.865717058 | O68: 2.663024325 | P68: 2.430809467 | Q68: 2.224565193 | R68: 2.037641103 | S68: 1.823503127 | T68: 1.571474889 | U68: 1.371014166 | V68: 1.162860392 | W68: 0.936647842 | X68: 0.6919232323 | Y68: 0.4695417379 | Z68: 0.2389670033 | AA68: 0
A69: Principal repayment | B69: USD M | G69: =SUM(H69:AA69) -> 235.4110525 | H69: =H64 -> 0 | I69: =I64 -> 0 | J69: 0 | K69: 0 | L69: 14.25768974 | M69: 14.43661842 | N69: 14.62111617 | O69: 14.82380891 | P69: 15.04079119 | Q69: 15.24703546 | R69: 15.4467117 | S69: 15.66084968 | T69: 15.89238114 | U69: 16.10182811 | V69: 16.31770372 | W69: 16.54391627 | X69: 16.77829742 | Y69: 17.00456618 | Z69: 17.23773838 | AA69: 0
A70: Total | B70: USD M | G70: =SUM(H70:AA70) -> 262.1238305 | H70: =SUM(H68:H69) -> 0 | I70: =SUM(I68:I69) -> 0 | J70: =SUM(J68:J69) -> 0 | K70: =SUM(K68:K69) -> 0 | L70: =SUM(L68:L69) -> 17.45025059 | M70: =SUM(M68:M69) -> 17.46914604 | N70: =SUM(N68:N69) -> 17.48683323 | O70: =SUM(O68:O69) -> 17.48683323 | P70: =SUM(P68:P69) -> 17.47160066 | Q70: =SUM(Q68:Q69) -> 17.47160066 | R70: =SUM(R68:R69) -> 17.48435281 | S70: =SUM(S68:S69) -> 17.48435281 | T70: =SUM(T68:T69) -> 17.46385603 | U70: =SUM(U68:U69) -> 17.47284227 | V70: =SUM(V68:V69) -> 17.48056412 | W70: =SUM(W68:W69) -> 17.48056412 | X70: =SUM(X68:X69) -> 17.47022065 | Y70: =SUM(Y68:Y69) -> 17.47410792 | Z70: =SUM(Z68:Z69) -> 17.47670538 | AA70: =SUM(AA68:AA69) -> 0
A72: Debt service coverage ratio
A73: CFADS (during debt service) | B73: USD M | H73: =H39*H10 -> 0 | I73: 0 | J73: 0 | K73: 0 | L73: 22.6524813 | M73: 27.74389869 | N73: 22.28419706 | O73: 27.78884004 | P73: 27.99618669 | Q73: 28.01078927 | R73: 28.38443784 | S73: 29.96050938 | T73: 29.72314735 | U73: 31.00002955 | V73: 32.16487933 | W73: 32.19609405 | X73: 32.78220713 | Y73: 33.42392074 | Z73: 32.08015534 | AA73: 0
A74: Total debt service | B74: USD M | H74: =H70 -> 0 | I74: =I70 -> 0 | J74: 0 | K74: 0 | L74: 17.45025059 | M74: 17.46914604 | N74: 17.48683323 | O74: 17.48683323 | P74: 17.47160066 | Q74: 17.47160066 | R74: 17.48435281 | S74: 17.48435281 | T74: 17.46385603 | U74: 17.47284227 | V74: 17.48056412 | W74: 17.48056412 | X74: 17.47022065 | Y74: 17.47410792 | Z74: 17.47670538 | AA74: 0
A75: DSCR | B75: x | H75: =IF(H10=0,0,H73/H74) -> 0 | I75: 0 | J75: 0 | K75: 0 | L75: 1.298117822 | M75: 1.588165708 | N75: 1.274341487 | O75: 1.589129356 | P75: 1.602382474 | Q75: 1.603218264 | R75: 1.623419417 | S75: 1.713561246 | T75: 1.701980782 | U75: 1.774183562 | V75: 1.840036689 | W75: 1.841822371 | X75: 1.876462111 | Y75: 1.91276836 | Z75: 1.835595133 | AA75: 0

Sheet SMART Campus

Sheet Contacts
